[Event "EYTCC U18 Open 2019"]
[Site "Pardubice"]
[Date "2019.07.13"]
[Round "3.10"]
[White "Derakhshani, Borna"]
[Black "Bugar, Peter"]
[Result "1-0"]
[ECO "A05"]
[WhiteElo "2300"]
[BlackElo "2002"]
[Annotator "NA"]
[PlyCount "85"]
[EventDate "2019.07.11"]
[EventType "swiss"]
[EventCountry "CZE"]
[SourceTitle "playchess.com"]
[Source "ChessBase"]
[SourceQuality "1"]
[WhiteTeam "England"]
[BlackTeam "Slovakia"]
[WhiteTeamCountry "ENG"]
[BlackTeamCountry "SVK"]
[TimeControl "40/5400+30:1800+30"]

1. Nf3 {[%emt 0:00:00]} Nf6 {[%emt 0:00:00]} 2. b3 {[%emt 0:00:00]} b6 {[%emt 0:01:29]} 3. Bb2 {[%emt 0:02:19]} Bb7 {[%emt 0:00:09]} 4. c4 {[%emt 0:00:06]} c5 {[%emt 0:02:01]} 5. e3 {[%emt 0:00:30]} e6 {[%emt 0:02:57]} 6. Nc3 {[%emt 0:00:38]} Be7 {[%emt 0:03:30]} 7. d4 {[%emt 0:00:33]} cxd4 {[%emt 0:00:53]} 8. exd4 {[%emt 0:00:29]} d5 {[%emt 0:00:49]} 9. Be2 {[%emt 0:02:07]} O-O {[%emt 0:00:57]} 10. O-O {[%emt 0:00:05]} Nc6 {[%emt 0:00:57]} 11. Ne5 {[%emt 0:09:56]} Bd6 {[%emt 0:08:08]} 12. f4 {[%emt 0:06:02]} Nxd4 {[%emt 0:01:45]} 13. Bd3 {[%emt 0:00:03]} dxc4 {[%emt 0:03:24]} 14. Nxc4 {[%emt 0:01:35]} Bc5 {[%emt 0:02:48]} 15. Kh1 {[%emt 0:00:05]} Nd5 {[%emt 0:11:32]} 16. Ne4 {[%emt 0:09:29]} Nf5 {[%emt 0:06:55]} 17. Nxc5 {[%emt 0:01:51]} bxc5 {[%emt 0:03:36]} 18. Bxf5 {[%emt 0:01:55]} exf5 {[%emt 0:00:15]} 19. Qh5 {[%emt 0:00:50]} Re8 {[%emt 0:10:20]} 20. Rad1 {[%emt 0:07:17]} Qe7 {[%emt 0:03:02]} 21. Rd2 {[%emt 0:18:41]} Nxf4 {[%emt 0:04:11]} 22. Qxf5 {[%emt 0:00:17]} Qh4 {[%emt 0:05:16]} 23. Nd6 {[%emt 0:03:24]} f6 {[%emt 0:04:11]} 24. Nxe8 {[%emt 0:16:49]} Rxe8 {[%emt 0:00:22]} 25. Qc2 {[%emt 0:01:04]} Re1 {[%emt 0:11:07]} 26. Qc4+ {[%emt 0:07:27]} Bd5 {[%emt 0:00:26]} 27. Rxd5 {[%emt 0:00:28]} Rxf1+ {[%emt 0:00:25]} 28. Qxf1 {[%emt 0:00:01]} Nxd5 {[%emt 0:00:11]} 29. Qe2 {[%emt 0:00:03]} Kf7 {[%emt 0:01:05]} 30. h3 {[%emt 0:00:01]} Ne7 {[%emt 0:03:11]} 31. Ba3 {[%emt 0:00:56]} Qg5 {[%emt 0:02:10]} 32. Qc4+ {[%emt 0:00:23]} Nd5 {[%emt 0:01:31]} 33. Qxc5 {[%emt 0:00:18]} Qd2 {[%emt 0:01:18]} 34. Qxa7+ {[%emt 0:00:56]} Kg6 {[%emt 0:00:14]} 35. Bf8 {[%emt 0:00:59]} Qe1+ {[%emt 0:00:42]} 36. Qg1 {[%emt 0:00:06]} Qd2 {[%emt 0:02:35]} 37. Bc5 {[%emt 0:04:21]} Qxa2 38. Qd1 Nc7 {[%emt 0:03:55]} 39. Qg4+ {[%emt 0:00:05]} Kh6 {[%emt 0:00:38]} 40. Qf4+ {[%emt 0:00:02]} g5 {[%emt 0:00:31]} 41. Qxf6+ {[%emt 0:30:24]} Kh5 {[%emt 0:00:36]} 42. Qf7+ {[%emt 0:00:00]} Kh6 {[%emt 0:00:18]} 43. Bf8# {[%emt 0:00:00]} 1-0

[Event "EYTCC U18 Open 2019"]
[Site "Pardubice"]
[Date "2019.07.13"]
[Round "3.11"]
[White "Viczencz, Peter"]
[Black "Grieve, Harry"]
[Result "0-1"]
[ECO "B47"]
[WhiteElo "2014"]
[BlackElo "2235"]
[Annotator "NA"]
[PlyCount "70"]
[EventDate "2019.07.11"]
[EventType "swiss"]
[EventCountry "CZE"]
[SourceTitle "playchess.com"]
[Source "ChessBase"]
[SourceQuality "1"]
[WhiteTeam "Slovakia"]
[BlackTeam "England"]
[WhiteTeamCountry "SVK"]
[BlackTeamCountry "ENG"]
[TimeControl "40/5400+30:1800+30"]

1. e4 {[%emt 0:00:00]} c5 {[%emt 0:00:00]} 2. Nf3 {[%emt 0:00:00]} e6 {[%emt 0:00:00]} 3. d4 {[%emt 0:00:00]} cxd4 {[%emt 0:00:00]} 4. Nxd4 {[%emt 0:00:00]} Nc6 {[%emt 0:00:05]} 5. Nc3 {[%emt 0:00:30]} Qc7 {[%emt 0:00:06]} 6. g3 {[%emt 0:03:55]} a6 {[%emt 0:00:34]} 7. Bg2 {[%emt 0:00:56]} Nf6 {[%emt 0:00:28]} 8. O-O {[%emt 0:00:36]} Nxd4 {[%emt 0:00:31]} 9. Qxd4 {[%emt 0:00:08]} Bc5 {[%emt 0:00:03]} 10. Qd3 {[%emt 0:03:49]} Ng4 {[%emt 0:01:33]} 11. h3 {[%emt 0:09:28]} Ne5 {[%emt 0:00:22]} 12. Qe2 {[%emt 0:00:12]} b5 {[%emt 0:05:47]} 13. Kh2 {[%emt 0:03:31]} h5 {[%emt 0:03:53]} 14. Bf4 {[%emt 0:06:30]} h4 {[%emt 0:04:52]} 15. Rad1 {[%emt 0:09:46]} f6 {[%emt 0:08:32]} 16. Bxe5 {[%emt 0:02:10]} Qxe5 {[%emt 0:01:23]} 17. Qg4 {[%emt 0:00:53]} g5 {[%emt 0:05:25]} 18. Rd3 {[%emt 0:07:50]} hxg3+ {[%emt 0:11:00]} 19. Qxg3 {[%emt 0:00:59]} Bd4 {[%emt 0:10:26]} 20. Ne2 {[%emt 0:07:01]} Qxg3+ {[%emt 0:05:35]} 21. fxg3 {[%emt 0:00:09]} Be5 {[%emt 0:00:05]} 22. c3 {[%emt 0:00:26]} Bb7 {[%emt 0:04:25]} 23. Nd4 {[%emt 0:01:34]} g4 {[%emt 0:01:10]} 24. Re1 {[%emt 0:03:51]} Ke7 {[%emt 0:02:26]} 25. Nb3 {[%emt 0:02:10]} gxh3 {[%emt 0:07:41]} 26. Bxh3 {[%emt 0:00:30]} Rh7 {[%emt 0:04:18]} 27. Nc5 {[%emt 0:05:09]} Bc6 {[%emt 0:01:34]} 28. Red1 {[%emt 0:02:51]} d6 {[%emt 0:01:48]} 29. Nxe6 {[%emt 0:00:48]} Bd7 {[%emt 0:01:24]} 30. Nf4 {[%emt 0:01:05]} Bxh3 {[%emt 0:00:30]} 31. Nxh3 {[%emt 0:00:11]} Rah8 {[%emt 0:00:07]} 32. a4 {[%emt 0:03:30]} Rxh3+ {[%emt 0:00:47]} 33. Kg2 {[%emt 0:00:05]} Rh2+ {[%emt 0:00:14]} 34. Kf3 {[%emt 0:00:07]} Rg8 {[%emt 0:00:25]} 35. Rg1 {[%emt 0:00:36]} bxa4 {[%emt 0:00:36]} 0-1

[Event "EYTCC U18 Open 2019"]
[Site "Pardubice"]
[Date "2019.07.13"]
[Round "3.12"]
[White "Stoyanov, Viktor"]
[Black "Matis, Tibor"]
[Result "1-0"]
[ECO "A17"]
[WhiteElo "2198"]
[BlackElo "1862"]
[Annotator "NA"]
[PlyCount "81"]
[EventDate "2019.07.11"]
[EventType "swiss"]
[EventCountry "CZE"]
[SourceTitle "playchess.com"]
[Source "ChessBase"]
[SourceQuality "1"]
[WhiteTeam "England"]
[BlackTeam "Slovakia"]
[WhiteTeamCountry "ENG"]
[BlackTeamCountry "SVK"]
[TimeControl "40/5400+30:1800+30"]

1. c4 {[%emt 0:00:00]} Nf6 {[%emt 0:00:00]} 2. Nc3 {[%emt 0:00:00]} e6 {[%emt 0:01:59]} 3. Nf3 {[%emt 0:00:41]} b6 {[%emt 0:01:25]} 4. e3 {[%emt 0:02:35]} Bb7 {[%emt 0:01:23]} 5. b3 {[%emt 0:00:07]} Be7 {[%emt 0:02:13]} 6. Bb2 {[%emt 0:00:12]} O-O {[%emt 0:00:08]} 7. Be2 {[%emt 0:00:32]} Na6 {[%emt 0:07:07]} 8. O-O {[%emt 0:01:28]} Rc8 {[%emt 0:01:26]} 9. Rc1 {[%emt 0:00:44]} d5 {[%emt 0:07:04]} 10. cxd5 {[%emt 0:00:33]} exd5 {[%emt 0:01:34]} 11. d4 {[%emt 0:01:28]} c5 {[%emt 0:03:59]} 12. Bd3 {[%emt 0:01:35]} Nb4 {[%emt 0:02:52]} 13. Bf5 {[%emt 0:00:11]} Ba6 {[%emt 0:05:25]} 14. Re1 {[%emt 0:00:09]} Rb8 {[%emt 0:03:04]} 15. a3 {[%emt 0:00:21]} Nc6 {[%emt 0:01:22]} 16. Ne2 {[%emt 0:05:43]} g6 {[%emt 0:02:47]} 17. Bd3 {[%emt 0:00:45]} Bb7 {[%emt 0:00:22]} 18. Nf4 {[%emt 0:03:31]} cxd4 {[%emt 0:09:08]} 19. Bb5 {[%emt 0:07:00]} Rc8 {[%emt 0:02:10]} 20. Nxd4 {[%emt 0:00:56]} Ne5 {[%emt 0:04:27]} 21. Be2 {[%emt 0:03:41]} a6 {[%emt 0:03:27]} 22. Rxc8 {[%emt 0:00:48]} Qxc8 {[%emt 0:01:09]} 23. Qa1 {[%emt 0:00:11]} Qb8 {[%emt 0:03:40]} 24. Nf5 {[%emt 0:00:35]} gxf5 {[%emt 0:02:13]} 25. Bxe5 {[%emt 0:00:07]} Qd8 {[%emt 0:00:37]} 26. Bd3 {[%emt 0:00:11]} Bc8 {[%emt 0:08:09]} 27. Ne2 {[%emt 0:01:17]} Ng4 {[%emt 0:01:33]} 28. Bf4 {[%emt 0:00:51]} Bf6 {[%emt 0:01:23]} 29. Qb1 {[%emt 0:01:49]} Ne5 {[%emt 0:06:55]} 30. Bxf5 {[%emt 0:00:23]} Bxf5 {[%emt 0:00:05]} 31. Qxf5 {[%emt 0:00:08]} Ng6 {[%emt 0:00:46]} 32. Rd1 {[%emt 0:01:37]} Be7 {[%emt 0:09:15]} 33. a4 {[%emt 0:00:33]} Bb4 {[%emt 0:01:27]} 34. Bg3 {[%emt 0:13:30]} Qe7 {[%emt 0:02:14]} 35. Nd4 {[%emt 0:01:41]} Qc5 {[%emt 0:01:12]} 36. h4 {[%emt 0:02:01]} Rc8 {[%emt 0:02:55]} 37. h5 {[%emt 0:00:09]} Ne7 {[%emt 0:00:20]} 38. Qf6 {[%emt 0:00:52]} Nc6 {[%emt 0:01:09]} 39. Nf5 {[%emt 0:01:07]} Bc3 {[%emt 0:00:32]} 40. Nh6+ {[%emt 0:00:10]} Kf8 {[%emt 0:00:08]} 41. Qxf7# {[%emt 0:30:06]} 1-0

[Event "EYTCC U18 Open 2019"]
[Site "Pardubice"]
[Date "2019.07.13"]
[Round "3.13"]
[White "Miesbauer, Jan"]
[Black "Subelj, Jan"]
[Result "0-1"]
[ECO "C85"]
[WhiteElo "2409"]
[BlackElo "2425"]
[Annotator "NA"]
[PlyCount "104"]
[EventDate "2019.07.11"]
[EventType "swiss"]
[EventCountry "CZE"]
[SourceTitle "playchess.com"]
[Source "ChessBase"]
[SourceQuality "1"]
[WhiteTeam "Czech Republic"]
[BlackTeam "Slovenia"]
[WhiteTeamCountry "CZE"]
[BlackTeamCountry "SLO"]
[TimeControl "40/5400+30:1800+30"]

1. e4 {[%emt 0:00:00]} e5 {[%emt 0:00:00]} 2. Nf3 {[%emt 0:00:00]} Nc6 {[%emt 0:00:00]} 3. Bb5 {[%emt 0:00:00]} a6 {[%emt 0:00:10]} 4. Ba4 {[%emt 0:00:12]} Nf6 {[%emt 0:00:42]} 5. O-O {[%emt 0:00:33]} Be7 {[%emt 0:00:48]} 6. Bxc6 {[%emt 0:00:57]} dxc6 {[%emt 0:00:07]} 7. d3 {[%emt 0:00:20]} Nd7 {[%emt 0:01:07]} 8. b3 {[%emt 0:00:30]} O-O {[%emt 0:09:25]} 9. Bb2 {[%emt 0:00:20]} f6 {[%emt 0:00:40]} 10. Nbd2 {[%emt 0:00:55]} Nc5 {[%emt 0:02:37]} 11. Nc4 {[%emt 0:02:28]} Re8 {[%emt 0:02:51]} 12. Nh4 {[%emt 0:02:56]} Ne6 {[%emt 0:01:37]} 13. g3 {[%emt 0:03:42]} Bc5 {[%emt 0:18:23]} 14. Kh1 {[%emt 0:05:46]} b5 {[%emt 0:00:57]} 15. Ne3 {[%emt 0:00:52]} Bd4 {[%emt 0:00:06]} 16. Bxd4 {[%emt 0:01:44]} exd4 {[%emt 0:01:36]} 17. Neg2 {[%emt 0:00:42]} c5 {[%emt 0:00:30]} 18. f4 {[%emt 0:01:31]} c4 {[%emt 0:03:52]} 19. f5 {[%emt 0:00:44]} Ng5 {[%emt 0:02:00]} 20. Nf4 {[%emt 0:08:04]} c5 {[%emt 0:08:34]} 21. Rc1 {[%emt 0:00:19]} Bb7 {[%emt 0:08:03]} 22. Nhg2 {[%emt 0:01:58]} Qd7 {[%emt 0:02:51]} 23. Qg4 {[%emt 0:05:13]} Kh8 {[%emt 0:03:31]} 24. Nh5 {[%emt 0:04:47]} Nxe4 {[%emt 0:01:25]} 25. dxe4 {[%emt 0:00:30]} Rxe4 {[%emt 0:00:05]} 26. Qd1 {[%emt 0:07:29]} Rae8 {[%emt 0:00:44]} 27. Kg1 {[%emt 0:09:02]} d3 {[%emt 0:04:04]} 28. cxd3 {[%emt 0:05:05]} cxd3 {[%emt 0:00:25]} 29. Rf2 {[%emt 0:05:13]} c4 {[%emt 0:04:44]} 30. bxc4 {[%emt 0:01:41]} bxc4 {[%emt 0:00:09]} 31. Nhf4 {[%emt 0:00:30]} Qd4 {[%emt 0:05:44]} 32. Qd2 {[%emt 0:08:30]} Bc8 {[%emt 0:08:43]} 33. Qc3 {[%emt 0:04:51]} Qxc3 {[%emt 0:00:42]} 34. Rxc3 {[%emt 0:00:05]} Rd4 {[%emt 0:00:05]} 35. Rd2 {[%emt 0:04:45]} Bxf5 {[%emt 0:00:05]} 36. Kf2 {[%emt 0:03:08]} g5 {[%emt 0:00:59]} 37. Ne3 {[%emt 0:06:54]} Be4 {[%emt 0:04:24]} 38. Nh5 {[%emt 0:04:34]} Bg6 {[%emt 0:00:33]} 39. Rxc4 {[%emt 0:01:46]} Rxc4 {[%emt 0:00:17]} 40. Nxc4 {[%emt 0:00:04]} Bxh5 {[%emt 0:00:07]} 41. Rxd3 {[%emt 0:04:11]} Re2+ {[%emt 0:00:43]} 42. Kg1 {[%emt 0:00:32]} Re1+ {[%emt 0:00:20]} 43. Kf2 {[%emt 0:00:34]} Re2+ {[%emt 0:00:06]} 44. Kg1 {[%emt 0:00:03]} Rxa2 {[%emt 0:00:06]} 45. Rd7 {[%emt 0:00:10]} Bg4 {[%emt 0:09:49]} 46. Ra7 {[%emt 0:01:09]} Bh3 {[%emt 0:00:22]} 47. Ne3 {[%emt 0:01:34]} f5 {[%emt 0:00:40]} 48. g4 {[%emt 0:07:50]} Bxg4 {[%emt 0:00:16]} 49. Nd5 {[%emt 0:00:11]} f4 {[%emt 0:00:45]} 50. Nf6 {[%emt 0:01:28]} Bf5 {[%emt 0:00:05]} 51. Nh5 {[%emt 0:00:35]} h6 {[%emt 0:02:57]} 52. Rc7 {[%emt 0:03:30]} f3 {[%emt 0:00:19]} 0-1

[Event "EYTCC U18 Open 2019"]
[Site "Pardubice"]
[Date "2019.07.13"]
[Round "3.14"]
[White "Stevanic, David"]
[Black "Zeman, Matyas"]
[Result "1-0"]
[ECO "C11"]
[WhiteElo "2306"]
[BlackElo "2275"]
[Annotator "NA"]
[PlyCount "93"]
[EventDate "2019.07.11"]
[EventType "swiss"]
[EventCountry "CZE"]
[SourceTitle "playchess.com"]
[Source "ChessBase"]
[SourceQuality "1"]
[WhiteTeam "Slovenia"]
[BlackTeam "Czech Republic"]
[WhiteTeamCountry "SLO"]
[BlackTeamCountry "CZE"]
[TimeControl "40/5400+30:1800+30"]

1. e4 {[%emt 0:00:00]} e6 {[%emt 0:00:00]} 2. d4 {[%emt 0:00:00]} d5 {[%emt 0:00:00]} 3. Nc3 {[%emt 0:00:00]} Nf6 {[%emt 0:00:00]} 4. e5 {[%emt 0:00:00]} Nfd7 {[%emt 0:00:01]} 5. f4 {[%emt 0:00:00]} c5 {[%emt 0:00:12]} 6. Nf3 {[%emt 0:00:04]} Nc6 {[%emt 0:00:07]} 7. Be3 {[%emt 0:00:13]} Be7 {[%emt 0:00:12]} 8. Qd2 {[%emt 0:00:09]} O-O {[%emt 0:00:13]} 9. dxc5 {[%emt 0:00:52]} Qa5 {[%emt 0:00:44]} 10. a3 {[%emt 0:06:00]} Bxc5 {[%emt 0:06:19]} 11. Bxc5 {[%emt 0:06:40]} Qxc5 {[%emt 0:06:00]} 12. Bd3 {[%emt 0:09:44]} Nb6 {[%emt 0:20:40]} 13. b4 {[%emt 0:05:42]} Qe7 {[%emt 0:00:28]} 14. O-O {[%emt 0:09:15]} Bd7 15. Qf2 {[%emt 0:10:00]} f6 {[%emt 0:19:08]} 16. exf6 Qxf6 {[%emt 0:10:08]} 17. Ne2 {[%emt 0:01:28]} e5 {[%emt 0:00:08]} 18. fxe5 {[%emt 0:10:42]} Nxe5 {[%emt 0:00:30]} 19. Nxe5 {[%emt 0:00:28]} Qxe5 {[%emt 0:00:05]} 20. Qh4 {[%emt 0:00:42]} Bf5 {[%emt 0:01:19]} 21. Qd4 {[%emt 0:17:33]} Qxd4+ {[%emt 0:01:56]} 22. Nxd4 {[%emt 0:01:31]} Bxd3 {[%emt 0:00:07]} 23. Rxf8+ Rxf8 {[%emt 0:09:45]} 24. cxd3 {[%emt 0:00:53]} Re8 {[%emt 0:15:49]} 25. Rc1 {[%emt 0:07:10]} Re7 {[%emt 0:02:04]} 26. Kf2 {[%emt 0:01:27]} Kf7 {[%emt 0:00:34]} 27. Nf5 {[%emt 0:03:53]} Rd7 {[%emt 0:00:14]} 28. Ke3 {[%emt 0:01:12]} g6 {[%emt 0:01:20]} 29. Nd4 {[%emt 0:00:35]} Re7+ {[%emt 0:00:06]} 30. Kd2 {[%emt 0:00:14]} a6 {[%emt 0:01:59]} 31. Rc5 {[%emt 0:04:15]} Rd7 {[%emt 0:00:52]} 32. Nf3 {[%emt 0:01:14]} Kf6 {[%emt 0:00:11]} 33. Ke3 {[%emt 0:00:41]} g5 {[%emt 0:01:16]} 34. Kd4 Re7 {[%emt 0:02:01]} 35. Rc2 {[%emt 0:02:12]} g4 {[%emt 0:00:05]} 36. Ng1 {[%emt 0:01:04]} h5 {[%emt 0:02:41]} 37. Ne2 {[%emt 0:00:27]} Kg5 {[%emt 0:00:39]} 38. g3 {[%emt 0:00:43]} h4 {[%emt 0:00:28]} 39. Nf4 {[%emt 0:00:10]} hxg3 {[%emt 0:00:12]} 40. hxg3 {[%emt 0:00:10]} Rf7 {[%emt 0:00:50]} 41. Rc7 {[%emt 0:08:17]} Rxc7 {[%emt 0:01:45]} 42. Ne6+ {[%emt 0:00:52]} Kf5 {[%emt 0:00:24]} 43. Nxc7 {[%emt 0:00:07]} Nc8 {[%emt 0:03:32]} 44. Nxd5 {[%emt 0:01:16]} Nd6 {[%emt 0:00:33]} 45. Ne3+ {[%emt 0:00:06]} Kg5 {[%emt 0:00:09]} 46. a4 {[%emt 0:00:33]} Nc8 {[%emt 0:02:42]} 47. Kc5 {[%emt 0:03:25]} 1-0

[Event "EYTCC U18 Open 2019"]
[Site "Pardubice"]
[Date "2019.07.13"]
[Round "3.15"]
[White "Sramek, Vojtech"]
[Black "Tisaj, Domen"]
[Result "1/2-1/2"]
[ECO "B32"]
[WhiteElo "2233"]
[BlackElo "2232"]
[Annotator "NA"]
[PlyCount "109"]
[EventDate "2019.07.11"]
[EventType "swiss"]
[EventCountry "CZE"]
[SourceTitle "playchess.com"]
[Source "ChessBase"]
[SourceQuality "1"]
[WhiteTeam "Czech Republic"]
[BlackTeam "Slovenia"]
[WhiteTeamCountry "CZE"]
[BlackTeamCountry "SLO"]
[TimeControl "40/5400+30:1800+30"]

1. e4 {[%emt 0:00:00]} c5 {[%emt 0:00:00]} 2. Nf3 {[%emt 0:00:00]} Nc6 {[%emt 0:00:00]} 3. d4 {[%emt 0:00:00]} cxd4 {[%emt 0:00:05]} 4. Nxd4 {[%emt 0:00:00]} e5 {[%emt 0:00:12]} 5. Nb5 {[%emt 0:00:04]} d6 {[%emt 0:00:06]} 6. c4 {[%emt 0:00:31]} Be7 {[%emt 0:00:08]} 7. N5c3 {[%emt 0:00:20]} Nf6 {[%emt 0:00:39]} 8. Bd3 {[%emt 0:01:06]} O-O {[%emt 0:00:23]} 9. O-O {[%emt 0:00:55]} Nd7 {[%emt 0:00:55]} 10. Nd5 {[%emt 0:01:22]} Bg5 {[%emt 0:01:44]} 11. Nbc3 {[%emt 0:01:09]} Nc5 {[%emt 0:02:11]} 12. b4 {[%emt 0:03:21]} Ne6 {[%emt 0:05:10]} 13. Bb2 {[%emt 0:03:01]} Ncd4 {[%emt 0:04:28]} 14. g3 {[%emt 0:11:24]} Bh6 {[%emt 0:00:15]} 15. Kh1 {[%emt 0:03:42]} a5 {[%emt 0:14:16]} 16. a3 {[%emt 0:00:45]} axb4 {[%emt 0:00:14]} 17. axb4 {[%emt 0:00:10]} Rxa1 {[%emt 0:00:14]} 18. Bxa1 {[%emt 0:01:13]} Bd7 {[%emt 0:04:22]} 19. Qh5 {[%emt 0:08:36]} Nc6 {[%emt 0:23:06]} 20. f4 {[%emt 0:05:24]} exf4 {[%emt 0:12:59]} 21. gxf4 {[%emt 0:01:09]} f6 {[%emt 0:01:27]} 22. Nb5 {[%emt 0:09:17]} Bc8 {[%emt 0:05:33]} 23. h4 {[%emt 0:12:09]} Rf7 {[%emt 0:02:37]} 24. Bc3 {[%emt 0:05:53]} Qf8 {[%emt 0:01:44]} 25. f5 {[%emt 0:03:26]} Ned8 {[%emt 0:00:10]} 26. Rg1 {[%emt 0:04:57]} Kh8 {[%emt 0:00:19]} 27. Bc2 {[%emt 0:06:02]} Ne5 {[%emt 0:00:26]} 28. Bxe5 {[%emt 0:00:51]} fxe5 {[%emt 0:02:45]} 29. Bb3 {[%emt 0:01:32]} g6 {[%emt 0:01:50]} 30. Qe2 {[%emt 0:11:13]} gxf5 {[%emt 0:00:47]} 31. c5 {[%emt 0:00:39]} dxc5 {[%emt 0:02:55]} 32. exf5 {[%emt 0:02:39]} Bxf5 {[%emt 0:00:40]} 33. bxc5 {[%emt 0:00:50]} Rg7 {[%emt 0:02:59]} 34. Nd6 {[%emt 0:01:41]} Be6 {[%emt 0:00:56]} 35. Bc4 {[%emt 0:01:09]} Nc6 {[%emt 0:03:23]} 36. Rf1 {[%emt 0:00:18]} Qg8 {[%emt 0:03:56]} 37. Nf6 {[%emt 0:00:37]} Bxc4 {[%emt 0:00:16]} 38. Qxc4 {[%emt 0:00:58]} Qxc4 {[%emt 0:00:20]} 39. Nxc4 {[%emt 0:00:03]} Bf4 {[%emt 0:01:35]} 40. Nh5 {[%emt 0:01:01]} Rg4 {[%emt 0:01:23]} 41. Nxf4 {[%emt 0:07:36]} Rxh4+ {[%emt 0:00:41]} 42. Kg2 {[%emt 0:00:10]} exf4 {[%emt 0:00:15]} 43. Nd6 {[%emt 0:04:02]} Ne5 {[%emt 0:04:45]} 44. Nxb7 {[%emt 0:02:10]} f3+ {[%emt 0:00:12]} 45. Kf2 {[%emt 0:02:35]} Rc4 {[%emt 0:04:07]} 46. Ke3 {[%emt 0:01:48]} Rc2 {[%emt 0:00:56]} 47. Kf4 {[%emt 0:03:10]} Re2 {[%emt 0:02:11]} 48. c6 {[%emt 0:01:14]} f2 {[%emt 0:02:02]} 49. c7 {[%emt 0:01:16]} Nd3+ {[%emt 0:00:21]} 50. Kf3 {[%emt 0:00:54]} Rc2 {[%emt 0:00:07]} 51. Ke3 {[%emt 0:00:47]} Rxc7 {[%emt 0:00:05]} 52. Kxd3 {[%emt 0:00:07]} Rxb7 {[%emt 0:00:04]} 53. Ke3 {[%emt 0:00:15]} Re7+ {[%emt 0:00:09]} 54. Kxf2 {[%emt 0:00:06]} Rf7+ {[%emt 0:00:06]} 55. Kg2 {[%emt 0:00:06]} 1/2-1/2

[Event "EYTCC U18 Open 2019"]
[Site "Pardubice"]
[Date "2019.07.13"]
[Round "3.16"]
[White "Marn, Jan"]
[Black "Svanda, Ondrej"]
[Result "0-1"]
[ECO "A04"]
[WhiteElo "2215"]
[BlackElo "2234"]
[Annotator "NA"]
[PlyCount "130"]
[EventDate "2019.07.11"]
[EventType "swiss"]
[EventCountry "CZE"]
[SourceTitle "playchess.com"]
[Source "ChessBase"]
[SourceQuality "1"]
[WhiteTeam "Slovenia"]
[BlackTeam "Czech Republic"]
[WhiteTeamCountry "SLO"]
[BlackTeamCountry "CZE"]
[TimeControl "40/5400+30:1800+30"]

1. Nf3 {[%emt 0:00:00]} c5 {[%emt 0:02:14]} 2. g3 {[%emt 0:00:00]} Nc6 {[%emt 0:00:28]} 3. Bg2 {[%emt 0:00:11]} g6 {[%emt 0:00:10]} 4. O-O {[%emt 0:03:21]} Bg7 {[%emt 0:00:07]} 5. c4 {[%emt 0:06:20]} d6 {[%emt 0:01:58]} 6. Nc3 {[%emt 0:03:35]} e5 {[%emt 0:01:20]} 7. d3 {[%emt 0:09:42]} Nge7 {[%emt 0:00:08]} 8. Ne1 {[%emt 0:06:05]} Be6 {[%emt 0:00:12]} 9. Nc2 {[%emt 0:01:53]} d5 {[%emt 0:04:27]} 10. cxd5 {[%emt 0:00:41]} Nxd5 {[%emt 0:00:02]} 11. Ne3 {[%emt 0:01:49]} Nde7 {[%emt 0:02:12]} 12. Ne4 {[%emt 0:12:07]} b6 {[%emt 0:03:56]} 13. Qa4 {[%emt 0:05:32]} Rc8 {[%emt 0:11:59]} 14. Ng5 {[%emt 0:11:20]} Bd7 {[%emt 0:07:08]} 15. Nc4 {[%emt 0:10:58]} O-O {[%emt 0:05:47]} 16. Nd6 {[%emt 0:00:47]} Nd4 {[%emt 0:13:17]} 17. Qd1 {[%emt 0:00:15]} Rc7 {[%emt 0:10:25]} 18. Nc4 {[%emt 0:09:25]} Bc6 {[%emt 0:02:59]} 19. Bxc6 {[%emt 0:13:25]} Nexc6 {[%emt 0:00:49]} 20. e3 {[%emt 0:00:10]} Nf5 {[%emt 0:06:44]} 21. e4 {[%emt 0:00:04]} Nfd4 {[%emt 0:01:26]} 22. Nh3 {[%emt 0:02:47]} Rd7 {[%emt 0:01:21]} 23. Ne3 {[%emt 0:00:23]} Nb4 {[%emt 0:00:52]} 24. a3 {[%emt 0:00:10]} Nxd3 {[%emt 0:00:33]} 25. Nd5 {[%emt 0:00:02]} Rxd5 {[%emt 0:06:12]} 26. exd5 {[%emt 0:01:11]} Qxd5 {[%emt 0:00:07]} 27. f3 {[%emt 0:00:24]} Nb3 {[%emt 0:00:42]} 28. Rb1 {[%emt 0:00:46]} Nbxc1 {[%emt 0:01:12]} 29. Rxc1 {[%emt 0:00:08]} Qd4+ {[%emt 0:00:02]} 30. Nf2 {[%emt 0:00:05]} Nxc1 {[%emt 0:00:14]} 31. Qxc1 {[%emt 0:00:02]} Qd5 {[%emt 0:03:26]} 32. Kg2 {[%emt 0:00:13]} f5 {[%emt 0:01:23]} 33. Rd1 {[%emt 0:00:06]} Qe6 {[%emt 0:00:03]} 34. Qc2 {[%emt 0:01:25]} Re8 {[%emt 0:00:52]} 35. Re1 {[%emt 0:01:31]} Rd8 {[%emt 0:01:00]} 36. Nd3 {[%emt 0:00:17]} Qd5 {[%emt 0:01:11]} 37. Nf2 {[%emt 0:00:09]} Qe6 {[%emt 0:01:54]} 38. Nd3 {[%emt 0:00:14]} Rd4 {[%emt 0:01:02]} 39. Nf2 {[%emt 0:00:59]} Qd5 {[%emt 0:00:24]} 40. Re2 {[%emt 0:00:32]} Qc4 {[%emt 0:04:05]} 41. Qxc4+ {[%emt 0:03:54]} Rxc4 {[%emt 0:00:14]} 42. g4 {[%emt 0:01:16]} Kf7 {[%emt 0:02:43]} 43. b4 {[%emt 0:00:58]} Ke6 {[%emt 0:07:19]} 44. bxc5 {[%emt 0:00:09]} Rxc5 {[%emt 0:00:14]} 45. gxf5+ {[%emt 0:00:32]} gxf5 {[%emt 0:00:09]} 46. Nd3 {[%emt 0:00:04]} Rc4 {[%emt 0:00:42]} 47. Kf2 {[%emt 0:00:47]} Rd4 {[%emt 0:01:51]} 48. Nb4 {[%emt 0:00:37]} a5 {[%emt 0:01:43]} 49. Nc2 {[%emt 0:00:08]} Rd3 {[%emt 0:02:25]} 50. Ne3 {[%emt 0:01:10]} b5 {[%emt 0:01:55]} 51. Rc2 {[%emt 0:01:04]} Bf8 {[%emt 0:01:05]} 52. Rc6+ {[%emt 0:00:18]} Rd6 {[%emt 0:01:10]} 53. Rc8 {[%emt 0:00:08]} Bh6 {[%emt 0:00:24]} 54. Nf1 {[%emt 0:02:20]} Rb6 {[%emt 0:02:22]} 55. Ke2 {[%emt 0:00:30]} b4 {[%emt 0:00:36]} 56. axb4 {[%emt 0:00:07]} axb4 {[%emt 0:00:01]} 57. Nd2 {[%emt 0:00:28]} Bxd2 {[%emt 0:00:28]} 58. Kxd2 {[%emt 0:00:03]} b3 {[%emt 0:00:04]} 59. Kc1 {[%emt 0:00:02]} b2+ {[%emt 0:00:06]} 60. Kb1 {[%emt 0:00:04]} Kd5 {[%emt 0:01:31]} 61. Rd8+ {[%emt 0:00:10]} Kc4 {[%emt 0:00:18]} 62. Rf8 {[%emt 0:01:22]} e4 {[%emt 0:01:00]} 63. fxe4 {[%emt 0:01:34]} fxe4 {[%emt 0:00:01]} 64. Rf7 {[%emt 0:00:22]} e3 {[%emt 0:00:34]} 65. Rxh7 {[%emt 0:00:04]} Re6 {[%emt 0:00:15]} 0-1